lending/lending_fUSD_20250121
["ID","MTS","AMOUNT","RATE_DAILY","PERIOD"]
[349885763,1737477189994,-150.0,0.00018846,2]
[349885764,1737477190018,-150.0,0.00018869,2]
[349885765,1737477190042,-150.0,0.00018993,2]
[349885766,1737477197961,1297.15,0.0001851,2]
[349885767,1737477211613,-150.0,0.00019026,2]
[349885768,1737477211636,-433.3565,0.00019078,2]
[349885769,1737477211661,-150.0,0.00019136,2]
[349885770,1737477211685,-150.0,0.00019146,2]
[349885771,1737477211710,-31788.41074842,0.00019159,2]
[349885772,1737477211734,-150.0,0.00019159,2]
[349885773,1737477211758,-500.0,0.00019164,2]
[349885774,1737477211782,-500.0,0.00019164,2]
[349885775,1737477211804,-506.22125084,0.00019177,2]
[349885776,1737477211828,-443.0,0.00019177,2]
[349885777,1737477211853,-500.0,0.00019178,2]
[349885778,1737477211880,-500.0,0.00019178,2]
[349885779,1737477211904,-500.0,0.00019178,2]
[349885780,1737477211928,-500.0,0.00019178,2]
[349885781,1737477211952,-500.0,0.00019178,2]
[349885782,1737477211980,-538.12,0.00019178,2]
[349885783,1737477212006,-500.0,0.00019178,2]
[349885784,1737477212032,-500.0,0.00019178,2]
[349885785,1737477212055,-308.95259009,0.00019178,2]
[349885786,1737477212079,-500.0,0.00019178,2]
[349885787,1737477212105,-500.0,0.00019178,2]
[349885788,1737477212128,-500.0,0.00019178,2]
[349885789,1737477212152,-500.0,0.00019178,2]
[349885790,1737477212179,-500.0,0.00019178,2]
[349885791,1737477212204,-500.0,0.00019178,2]
[349885792,1737477212232,-500.0,0.00019178,2]
[349885793,1737477212260,-500.0,0.00019178,2]
[349885794,1737477212286,-500.0,0.00019178,2]
[349885795,1737477212311,-214.010247,0.00019178,2]
[349885796,1737477212339,-713.82,0.00019178,2]
[349885797,1737477212364,-500.0,0.00019178,2]
[349885798,1737477212389,-500.0,0.00019178,2]
[349885799,1737477212412,-500.0,0.00019178,2]
[349885800,1737477212436,-500.0,0.00019178,2]
[349885801,1737477212460,-500.0,0.00019178,2]
[349885802,1737477212483,-500.0,0.00019178,2]
[349885803,1737477212507,-476.29932465,0.00019178,2]
[349885812,1737477691919,181.08,0.00017999,30]
[349885813,1737477692271,181.08,0.00020583,30]
[349885815,1737477823658,155.11,0.00010137,2]
[349885817,1737478005655,264.32650834,0.00010143,7]
[349885820,1737478216190,185.56,0.00012329,2]
[349885826,1737478232019,-201.27629016,0.00014681,2]
[349885827,1737478232028,-154.0,0.0001475,2]
[349885828,1737478232038,-150.0,0.0001478,2]
[349885829,1737478232048,-300.0,0.0001478,2]
[349885830,1737478232057,-8598.43646507,0.00014781,7]
[349885831,1737478232066,-9921.64218912,0.00014781,7]
[349885832,1737478232177,-288.25007609,0.0001465,2]
[349885833,1737478232186,-28572.66044228,0.00014781,7]
[349885834,1737478232197,-9374.6857734,0.00014781,7]
[349885835,1737478232206,-616.04190599,0.000149,2]
[349885836,1737478232216,-550.0,0.00015,2]
[349885837,1737478232225,-506.26,0.00015856,2]
[349885838,1737478232235,-420.0,0.00016179,2]
[349885839,1737478232244,-155.11,0.00016813,2]
[349885840,1737478232253,-626.54,0.00017477,2]
[349885841,1737478232263,-1609.75,0.00017497,2]
[349885842,1737478232272,-160.9,0.00017541,2]
[349885843,1737478232281,-500.0,0.00017614,2]
[349885844,1737478232291,-4282.74,0.00017649,2]
[349885845,1737478232301,-250.0,0.00017675,2]
[349885846,1737478232310,-1691.0,0.000177,5]
[349885847,1737478232319,-780.28,0.00017709,2]
[349885848,1737478232329,-167.0,0.00017711,2]
[349885849,1737478232566,-250.0,0.00017714,2]
[349885850,1737478232579,-489.5,0.0001778,2]
[349885851,1737478232588,-280.8,0.00017821,2]
[349885852,1737478232598,-5223.0,0.00017875,2]
[349885854,1737478232608,-575.36,0.00017916,2]
[349885855,1737478232618,-250.0,0.00018025,2]
[349885856,1737478232627,-399.35,0.00018082,2]
[349885857,1737478232637,-506.26,0.0001812,2]
[349885858,1737478232647,-1364.2,0.00018203,2]
[349885859,1737478232658,-1000.0,0.00018245,2]
[349885860,1737478232668,-150.0,0.00018405,2]
[349885861,1737478232678,-200.0,0.00018436,2]
[349885862,1737478232688,-666.87712735,0.00018476,2]
[349885863,1737478232700,-23900.0,0.00018477,2]
[349885864,1737478232710,-2944.11,0.00018502,2]
[349885865,1737478232719,-1500.0,0.00018529,2]
[349885866,1737478232729,-175.099,0.00018549,2]
[349885868,1737478232739,-1426.031,0.00018549,2]
[349885869,1737478232748,-200.0,0.00018557,2]
[349885870,1737478232758,-176.89,0.00018615,2]
[349885871,1737478232768,-167.88,0.00018625,2]
[349885873,1737478232777,-793.5007,0.000187,2]
[349885875,1737478232787,-399.35,0.00018751,2]
[349885877,1737478232796,-300.0,0.00018824,2]
[349885879,1737478232805,-4867.31602585,0.00018978,2]
[349885881,1737478232815,-180.512,0.00018978,2]
[349885883,1737478232824,-582.7643852,0.00019004,2]
[349885885,1737478232834,-156.45995296,0.00019078,2]
[349885887,1737478232843,-6298.61409306,0.00019078,2]
[349885889,1737478232853,-1704.3955,0.00019078,2]
[349885891,1737478232863,-1426.7957,0.00019078,2]
[349885893,1737478232872,-3167.3674,0.00019078,2]
[349885895,1737478232882,-1000.0,0.00019078,2]
[349885897,1737478232891,-61222.6444,0.00019078,2]
[349885899,1737478232901,-541.8541,0.00019078,2]
[349885900,1737478232911,-1000.0,0.00019078,2]
[349885901,1737478232921,-5000.0,0.00019078,2]
[349885902,1737478232931,-220.0,0.00019078,2]
[349885903,1737478232943,-2500.0,0.00019078,2]
[349885904,1737478232952,-453.1832,0.00019078,2]
[349885905,1737478232962,-200.0,0.00019112,2]
[349885906,1737478232973,-500.0,0.00019164,2]
[349885907,1737478232983,-500.0,0.00019164,2]
[349885908,1737478232993,-154.05,0.00019168,2]
[349885909,1737478233003,-154.05,0.00019168,2]
[349885910,1737478233013,-154.05,0.00019168,2]
[349885911,1737478233024,-500.0,0.00019173,2]
[349885912,1737478233034,-600.77941577,0.00019178,2]
[349885913,1737478233044,-502.5771566,0.00019178,2]
[349885914,1737478233054,-503.95339738,0.00019178,2]
[349885915,1737478233064,-500.50446508,0.00019178,2]
[349885916,1737478233074,-502.25004239,0.00019178,2]
[349885917,1737478233084,-513.00630481,0.00019178,2]
[349885918,1737478233094,-580.53368935,0.00019178,2]
[349885919,1737478233104,-500.0,0.00019178,2]
[349885920,1737478233115,-500.0,0.00019178,2]
[349885921,1737478233125,-500.0,0.00019178,2]
[349885922,1737478233135,-500.0,0.00019178,2]
[349885923,1737478233146,-532.57351253,0.00019178,2]
[349885924,1737478233156,-500.0,0.00019178,2]
[349885925,1737478233167,-609.68,0.00019178,2]
[349885926,1737478233178,-500.0,0.00019178,2]
[349885927,1737478233187,-500.0,0.00019178,2]
[349885928,1737478233199,-500.0,0.00019178,2]
[349885929,1737478233210,-500.0,0.00019178,2]
[349885930,1737478233220,-507.85967645,0.00019178,2]
[349885931,1737478233231,-500.0,0.00019178,2]
[349885932,1737478233241,-500.0,0.00019178,2]
[349885933,1737478233254,-500.0,0.00019178,2]
[349885934,1737478233264,-500.0,0.00019178,2]
[349885935,1737478233274,-500.0,0.00019178,2]
[349885936,1737478233286,-500.0,0.00019178,2]
[349885937,1737478233295,-398.64264644,0.00019178,2]
[349885938,1737478233305,-500.0,0.00019178,2]
[349885939,1737478233315,-531.31427838,0.00019178,2]
[349885940,1737478233325,-500.0,0.00019178,2]
[349885941,1737478233336,-500.0,0.00019178,2]
[349885942,1737478233346,-500.0,0.00019178,2]
[349885943,1737478233356,-500.0,0.00019178,2]
[349885944,1737478233366,-500.0,0.00019178,2]
[349885945,1737478233376,-500.0,0.00019178,2]
[349885946,1737478233386,-500.0,0.00019178,2]
[349885947,1737478233396,-500.0,0.00019178,2]
[349885948,1737478233407,-500.0,0.00019178,2]
[349885949,1737478233416,-500.0,0.00019178,2]
[349885950,1737478233426,-500.0,0.00019178,2]
[349885951,1737478233436,-500.0,0.00019178,2]
[349885952,1737478233448,-500.0,0.00019178,2]
[349885953,1737478233458,-500.0,0.00019178,2]
[349885954,1737478233468,-500.0,0.00019178,2]
[349885955,1737478233479,-500.0,0.00019178,2]
[349885956,1737478233492,-500.0,0.00019178,2]
[349885957,1737478233502,-510.11831722,0.00019178,2]
[349885958,1737478233512,-500.0,0.00019178,2]
[349885959,1737478233523,-500.0,0.00019178,2]
[349885960,1737478233533,-500.98329748,0.00019178,2]
[349885961,1737478233543,-500.0,0.00019178,2]
[349885962,1737478233552,-500.0,0.00019178,2]
[349885963,1737478233563,-500.0,0.00019178,2]
[349885964,1737478233575,-500.0,0.00019178,2]
[349885965,1737478233585,-500.0,0.00019178,2]
[349885966,1737478233596,-500.0,0.00019178,2]
[349885967,1737478233607,-500.0,0.00019178,2]
[349885968,1737478233617,-500.0,0.00019178,2]
[349885969,1737478233627,-512.42714737,0.00019178,2]
[349885970,1737478233637,-500.0,0.00019178,2]
[349885971,1737478233648,-500.0,0.00019178,2]
[349885972,1737478233658,-500.0,0.00019178,2]
[349885973,1737478233669,-500.0,0.00019178,2]
[349885974,1737478233678,-500.0,0.00019178,2]
[349885975,1737478233689,-500.0,0.00019178,2]
[349885976,1737478233699,-500.0,0.00019178,2]
[349885977,1737478233708,-500.0,0.00019178,2]
[349885978,1737478233718,-500.0,0.00019178,2]
[349885979,1737478233728,-500.0,0.00019178,2]
[349885980,1737478233737,-500.0,0.00019178,2]
[349885981,1737478233747,-500.0,0.00019178,2]
[349885982,1737478233757,-500.0,0.00019178,2]
[349885983,1737478233767,-500.0,0.00019178,2]
[349885984,1737478233778,-500.0,0.00019178,2]
[349885985,1737478233787,-215.04445155,0.00019178,2]
[349885986,1737478233797,-500.0,0.00019178,2]
[349885987,1737478233807,-500.0,0.00019178,2]
[349885988,1737478233817,-501.44493825,0.00019178,2]
[349885989,1737478233826,-500.0,0.00019178,2]
[349885990,1737478233836,-500.0,0.00019178,2]
[349885991,1737478233846,-500.0,0.00019178,2]
[349885992,1737478233855,-500.18831155,0.00019178,2]
[349885993,1737478233865,-504.49594664,0.00019178,2]
[349885994,1737478233875,-500.0,0.00019178,2]
[349885995,1737478233885,-500.0,0.00019178,2]
[349885996,1737478233895,-500.0,0.00019178,2]
[349885997,1737478233904,-500.0,0.00019178,2]
[349885998,1737478233914,-504.220697,0.00019178,2]
[349885999,1737478233924,-584.92826417,0.00019178,2]
[349886000,1737478233934,-500.0,0.00019178,2]
[349886001,1737478233945,-502.33141178,0.00019178,2]
[349886002,1737478233955,-500.0,0.00019178,2]
[349886003,1737478233965,-500.0,0.00019178,2]
[349886004,1737478233976,-244.07859055,0.00019178,2]
[349886005,1737478233986,-500.0,0.00019178,2]
[349886006,1737478233996,-500.0,0.00019178,2]
[349886007,1737478234007,-500.0,0.00019178,2]
[349886008,1737478234017,-505.62005127,0.00019178,2]
[349886009,1737478234027,-500.0,0.00019178,2]
[349886010,1737478234037,-500.0,0.00019178,2]
[349886011,1737478234047,-500.0,0.00019178,2]
[349886012,1737478234057,-500.0,0.00019178,2]
[349886013,1737478234068,-500.0,0.00019178,2]
[349886014,1737478234079,-500.0,0.00019178,2]
[349886015,1737478234089,-500.0,0.00019178,2]
[349886016,1737478234099,-500.0,0.00019178,2]
[349886017,1737478234109,-500.0,0.00019178,2]
[349886018,1737478234120,-500.0,0.00019178,2]
[349886019,1737478234130,-500.0,0.00019178,2]
[349886020,1737478234140,-580.38,0.00019178,2]
[349886021,1737478234150,-306.79046239,0.00019178,2]
[349886022,1737478234160,-500.0,0.00019178,2]
[349886023,1737478234170,-500.0,0.00019178,2]
[349886024,1737478234180,-500.0,0.00019178,2]
[349886025,1737478234190,-500.0,0.00019178,2]
[349886026,1737478234201,-500.0,0.00019178,2]
[349886027,1737478234214,-500.0,0.00019178,2]
[349886028,1737478234224,-500.0,0.00019178,2]
[349886029,1737478234234,-500.0,0.00019178,2]
[349886030,1737478234245,-500.0,0.00019178,2]
[349886031,1737478234255,-500.0,0.00019178,2]
[349886032,1737478234266,-500.0,0.00019178,2]
[349886033,1737478234276,-503.42512501,0.00019178,2]
[349886034,1737478234286,-500.0,0.00019178,2]
[349886035,1737478234297,-503.42719359,0.00019178,2]
[349886036,1737478234307,-500.0,0.00019178,2]
[349886037,1737478234317,-500.0,0.00019178,2]
[349886038,1737478234327,-505.32682851,0.00019178,2]
[349886039,1737478234337,-500.0,0.00019178,2]
[349886040,1737478234346,-500.0,0.00019178,2]
[349886041,1737478234356,-500.0,0.00019178,2]
[349886042,1737478234366,-500.0,0.00019178,2]
[349886043,1737478234377,-500.0,0.00019178,2]
[349886044,1737478234388,-503.86282393,0.00019178,2]
[349886045,1737478234399,-425.22720164,0.00019178,2]
[349886046,1737478234409,-500.0,0.00019178,2]
[349886047,1737478234419,-504.80910732,0.00019178,2]
[349886048,1737478234429,-500.0,0.00019178,2]
[349886049,1737478234440,-500.0,0.00019178,2]
[349886050,1737478234450,-500.0,0.00019178,2]
[349886051,1737478234460,-500.0,0.00019178,2]
[349886052,1737478234470,-500.0,0.00019178,2]
[349886053,1737478234480,-500.0,0.00019178,2]
[349886054,1737478234494,-504.47582773,0.00019178,2]
[349886055,1737478234503,-500.0,0.00019178,2]
[349886056,1737478234514,-505.83693418,0.00019178,2]
[349886057,1737478234524,-500.0,0.00019178,2]
[349886058,1737478234535,-500.0,0.00019178,2]
[349886059,1737478234545,-500.0,0.00019178,2]
[349886060,1737478234555,-500.0,0.00019178,2]
[349886061,1737478234566,-500.0,0.00019178,2]
[349886062,1737478234576,-503.63133791,0.00019178,2]
[349886063,1737478234587,-500.0,0.00019178,2]
[349886064,1737478234597,-520.61,0.00019178,2]
[349886065,1737478234607,-500.0,0.00019178,2]
[349886066,1737478234617,-500.0,0.00019178,2]
[349886067,1737478234626,-545.56469862,0.00019178,2]
[349886068,1737478234636,-500.0,0.00019178,2]
[349886069,1737478234645,-500.0,0.00019178,2]
[349886070,1737478234655,-408.59581142,0.00019178,2]
[349886071,1737478234665,-600.8,0.00019178,2]
[349886072,1737478234675,-500.0,0.00019178,2]
[349886073,1737478234684,-500.0,0.00019178,2]
[349886074,1737478234694,-500.0,0.00019178,2]
[349886075,1737478234703,-500.0,0.00019178,2]
[349886076,1737478234713,-500.0,0.00019178,2]
[349886077,1737478234723,-500.0,0.00019178,2]
[349886078,1737478234732,-500.0,0.00019178,2]
[349886079,1737478234742,-1391.04,0.00019178,2]
[349886080,1737478234756,-500.0,0.00019178,2]
[349886081,1737478234766,-504.44514669,0.00019178,2]
[349886082,1737478234776,-574.37718809,0.00019178,2]
[349886083,1737478234785,-500.0,0.00019178,2]
[349886084,1737478234795,-503.43955934,0.00019178,2]
[349886085,1737478234805,-500.0,0.00019178,2]
[349886086,1737478234814,-500.0,0.00019178,2]
[349886087,1737478234824,-619.45,0.00019178,2]
[349886088,1737478234834,-500.0,0.00019178,2]
[349886089,1737478234844,-500.0,0.00019178,2]
[349886090,1737478234854,-511.56504729,0.00019178,2]
[349886091,1737478234863,-500.0,0.00019178,2]
[349886092,1737478234873,-500.0,0.00019178,2]
[349886093,1737478234882,-500.70562375,0.00019178,2]
[349886094,1737478234892,-500.0,0.00019178,2]
[349886095,1737478234902,-767.8,0.00019178,2]
[349886096,1737478234911,-500.0,0.00019178,2]
[349886097,1737478234921,-500.0,0.00019178,2]
[349886098,1737478234931,-590.63247403,0.00019178,2]
[349886099,1737478234941,-500.0,0.00019178,2]
[349886100,1737478234950,-500.0,0.00019178,2]
[349886101,1737478234960,-500.0,0.00019178,2]
[349886102,1737478234970,-500.0,0.00019178,2]
[349886103,1737478234979,-500.0,0.00019178,2]
[349886104,1737478234989,-500.0,0.00019178,2]
[349886105,1737478234999,-500.0,0.00019178,2]
[349886106,1737478235010,-500.0,0.00019178,2]
[349886107,1737478235019,-500.0,0.00019178,2]
[349886108,1737478235029,-500.0,0.00019178,2]
[349886109,1737478235039,-500.0,0.00019178,2]
[349886110,1737478235048,-500.0,0.00019178,2]
[349886111,1737478235058,-500.0,0.00019178,2]
[349886112,1737478235067,-500.0,0.00019178,2]
[349886113,1737478235077,-500.0,0.00019178,2]
[349886114,1737478235086,-628.07,0.00019178,2]
[349886115,1737478235096,-500.0,0.00019178,2]
[349886116,1737478235106,-541.15,0.00019178,2]
[349886117,1737478235115,-500.0,0.00019178,2]
[349886118,1737478235125,-500.0,0.00019178,2]
[349886119,1737478235135,-500.0,0.00019178,2]
[349886120,1737478235144,-500.0,0.00019178,2]
[349886121,1737478235153,-500.0,0.00019178,2]
[349886122,1737478235163,-500.0,0.00019178,2]
[349886123,1737478235172,-713.97,0.00019178,2]
[349886124,1737478235182,-578.13,0.00019178,2]
[349886125,1737478235192,-500.0,0.00019178,2]
[349886126,1737478235202,-500.0,0.00019178,2]
[349886127,1737478235213,-500.0,0.00019178,2]
[349886128,1737478235223,-500.0,0.00019178,2]
[349886129,1737478235233,-500.0,0.00019178,2]
[349886130,1737478235243,-538.16,0.00019178,2]
[349886131,1737478235252,-576.69,0.00019178,2]
[349886132,1737478235262,-500.0,0.00019178,2]
[349886133,1737478235271,-500.0,0.00019178,2]
[349886134,1737478235281,-500.0,0.00019178,2]
[349886135,1737478235290,-500.0,0.00019178,2]
[349886136,1737478235299,-500.0,0.00019178,2]
[349886137,1737478235308,-500.0,0.00019178,2]
[349886138,1737478235318,-500.0,0.00019178,2]
[349886139,1737478235327,-500.0,0.00019178,2]
[349886140,1737478235337,-500.0,0.00019178,2]
[349886141,1737478235347,-500.0,0.00019178,2]
[349886142,1737478235357,-500.0,0.00019178,2]
[349886143,1737478235366,-500.0,0.00019178,2]
[349886144,1737478235376,-500.0,0.00019178,2]
[349886145,1737478235385,-500.0,0.00019178,2]
[349886146,1737478235396,-500.0,0.00019178,2]
[349886147,1737478235405,-500.0,0.00019178,2]
[349886148,1737478235415,-500.0,0.00019178,2]
[349886149,1737478235425,-500.0,0.00019178,2]
[349886150,1737478235435,-500.0,0.00019178,2]
[349886151,1737478235445,-500.0,0.00019178,2]
[349886152,1737478235455,-500.0,0.00019178,2]
[349886153,1737478235464,-500.0,0.00019178,2]
[349886154,1737478235474,-500.0,0.00019178,2]
[349886155,1737478235488,-500.0,0.00019178,2]
[349886156,1737478235498,-500.0,0.00019178,2]
[349886157,1737478235507,-384.04080322,0.00019178,2]
[349886158,1737478235517,-500.0,0.00019178,2]
[349886159,1737478235527,-500.0,0.00019178,2]
[349886160,1737478235537,-500.0,0.00019178,2]
[349886161,1737478235547,-500.0,0.00019178,2]
[349886162,1737478235556,-500.0,0.00019178,2]
[349886163,1737478235566,-500.0,0.00019178,2]
[349886164,1737478235576,-500.0,0.00019178,2]
[349886165,1737478235586,-500.0,0.00019178,2]
[349886166,1737478235595,-500.0,0.00019178,2]
[349886167,1737478235604,-500.0,0.00019178,2]
[349886168,1737478235614,-500.0,0.00019178,2]
[349886169,1737478235624,-500.0,0.00019178,2]
[349886170,1737478235633,-500.0,0.00019178,2]
[349886171,1737478235643,-500.0,0.00019178,2]
[349886172,1737478235653,-500.0,0.00019178,2]
[349886173,1737478235662,-500.0,0.00019178,2]
[349886174,1737478235671,-506.50556852,0.00019178,2]
[349886175,1737478235681,-500.0,0.00019178,2]
[349886176,1737478235691,-500.0,0.00019178,2]
[349886177,1737478235700,-500.0,0.00019178,2]
[349886178,1737478235710,-500.0,0.00019178,2]
[349886179,1737478235719,-500.0,0.00019178,2]
[349886180,1737478235728,-500.0,0.00019178,2]
[349886181,1737478235738,-500.0,0.00019178,2]
[349886182,1737478235748,-509.41,0.00019178,2]
[349886183,1737478235757,-168.57318396,0.00019178,2]
[349886184,1737478235767,-500.0,0.00019178,2]
[349886185,1737478235777,-500.0,0.00019178,2]
[349886186,1737478235786,-500.0,0.00019178,2]
[349886187,1737478235796,-500.0,0.00019178,2]
[349886188,1737478235805,-500.0,0.00019178,2]
[349886189,1737478235814,-500.0,0.00019178,2]
[349886190,1737478235824,-500.0,0.00019178,2]
[349886191,1737478235834,-500.0,0.00019178,2]
[349886192,1737478235843,-500.0,0.00019178,2]
[349886193,1737478235853,-515.94904507,0.00019178,2]
[349886194,1737478235862,-500.0,0.00019178,2]
[349886195,1737478235871,-500.0,0.00019178,2]
[349886196,1737478235881,-500.0,0.00019178,2]
[349886197,1737478235892,-342.17491081,0.00019178,2]
[349886198,1737478235901,-513.188417,0.00019178,2]
[349886199,1737478235911,-500.0,0.00019178,2]
[349886200,1737478235921,-500.0,0.00019178,2]
[349886201,1737478235931,-580.323488,0.00019178,2]
[349886202,1737478235941,-500.0,0.00019178,2]
[349886203,1737478235951,-500.0,0.00019178,2]
[349886204,1737478235961,-500.0,0.00019178,2]
[349886205,1737478235971,-500.0,0.00019178,2]
[349886206,1737478236148,-500.0,0.00019178,2]
[349886207,1737478236159,-161.824447,0.00019178,2]
[349886208,1737478236169,-500.0,0.00019178,2]
[349886209,1737478236179,-500.0,0.00019178,2]
[349886210,1737478236189,-500.0,0.00019178,2]
[349886211,1737478236198,-500.980948,0.00019178,2]
[349886212,1737478236208,-500.0,0.00019178,2]
[349886213,1737478236218,-500.0,0.00019178,2]
[349886214,1737478236227,-500.0,0.00019178,2]
[349886215,1737478236237,-500.0,0.00019178,2]
[349886216,1737478236247,-500.0,0.00019178,2]
[349886217,1737478236256,-500.0,0.00019178,7]
[349886218,1737478236267,-500.0,0.00019178,2]
[349886219,1737478236276,-500.0,0.00019178,2]
[349886220,1737478236286,-500.0,0.00019178,2]
[349886221,1737478236296,-500.0,0.00019178,2]
[349886222,1737478236306,-500.0,0.00019178,2]
[349886223,1737478236315,-500.0,0.00019178,2]
[349886224,1737478236325,-500.0,0.00019178,2]
[349886225,1737478236334,-501.43182596,0.00019178,2]
[349886226,1737478236344,-500.0,0.00019178,2]
[349886227,1737478236353,-500.0,0.00019178,2]
[349886228,1737478236363,-500.0,0.00019178,2]
[349886229,1737478236372,-500.0,0.00019178,2]
[349886230,1737478236382,-686.831651,0.00019178,2]
[349886231,1737478236391,-280.7658057,0.00019178,2]
[349886232,1737478236401,-500.0,0.00019178,2]
[349886233,1737478236410,-500.0,0.00019178,2]
[349886234,1737478236419,-500.0,0.00019178,2]
[349886235,1737478236428,-500.0,0.00019178,2]
[349886236,1737478236438,-500.0,0.00019178,2]
[349886237,1737478236448,-500.0,0.00019178,2]
[349886238,1737478236458,-500.0,0.00019178,2]
[349886239,1737478236468,-500.0,0.00019178,2]
[349886240,1737478236478,-507.08211297,0.00019178,2]
[349886241,1737478236489,-500.0,0.00019178,2]
[349886242,1737478236499,-500.0,0.00019178,2]
[349886243,1737478236508,-502.89015809,0.00019178,2]
[349886244,1737478236517,-500.0,0.00019178,2]
[349886245,1737478236527,-500.0,0.00019178,2]
[349886246,1737478236537,-500.0,0.00019178,2]
[349886247,1737478236547,-500.0,0.00019178,2]
[349886248,1737478236556,-466.96722942,0.00019178,2]
[349886249,1737478236567,-500.0,0.00019178,2]
[349886250,1737478236576,-500.0,0.00019178,2]
[349886251,1737478236586,-500.0,0.00019178,2]
[349886252,1737478236595,-518.82853944,0.00019178,2]
[349886253,1737478236604,-565.47,0.00019178,2]
[349886254,1737478236614,-520.99365167,0.00019178,2]
[349886255,1737478236623,-500.0,0.00019178,2]
[349886256,1737478236632,-500.0,0.00019178,2]
[349886257,1737478236641,-500.0,0.00019178,2]
[349886258,1737478236651,-500.0,0.00019178,2]
[349886259,1737478236660,-500.0,0.00019178,2]
[349886260,1737478236669,-500.0,0.00019178,2]
[349886261,1737478236678,-500.0,0.00019178,2]
[349886262,1737478236688,-500.0,0.00019178,2]
[349886263,1737478236699,-500.0,0.00019178,2]
[349886264,1737478236710,-500.0,0.00019178,2]
[349886265,1737478236719,-500.0,0.00019178,2]
[349886266,1737478236729,-500.0,0.00019178,2]
[349886267,1737478236739,-500.0,0.00019178,2]
[349886268,1737478236749,-503.5151053,0.00019178,2]
[349886269,1737478236758,-377.87969583,0.00019178,2]
[349886270,1737478236799,-122.12030417,0.00019178,2]
[349886271,1737478236808,-500.0,0.00019178,2]
[349886272,1737478236818,-500.0,0.00019178,2]
[349886273,1737478236827,-500.0,0.00019178,2]
[349886274,1737478236836,-500.0,0.00019178,2]
[349886275,1737478236845,-500.0,0.00019178,2]
[349886276,1737478236855,-500.0,0.00019178,2]
[349886277,1737478236864,-500.0,0.00019178,2]
[349886278,1737478236873,-500.0,0.00019178,2]
[349886279,1737478236883,-500.0,0.00019178,2]
[349886280,1737478236891,-500.0,0.00019178,2]
[349886281,1737478236900,-500.0,0.00019178,2]
[349886282,1737478236910,-500.0,0.00019178,2]
[349886283,1737478236919,-500.0,0.00019178,2]
[349886284,1737478236929,-500.0,0.00019178,2]
[349886285,1737478236938,-205.3730635,0.00019178,2]
[349886286,1737478236949,-500.0,0.00019178,2]
[349886287,1737478236959,-500.0,0.00019178,2]
[349886288,1737478236969,-500.0,0.00019178,2]
[349886289,1737478236978,-500.0,0.00019178,2]
[349886290,1737478236988,-500.0,0.00019178,2]
[349886291,1737478236997,-515.03,0.00019178,2]
[349886292,1737478237007,-500.0,0.00019178,2]
[349886293,1737478237017,-500.0,0.00019178,2]
[349886294,1737478237026,-500.0,0.00019178,2]
[349886295,1737478237035,-500.0,0.00019178,2]